[Event "Romanian Team Blitz Open 2022"]
[Site "Sebes"]
[Date "2022.12.04"]
[Round "5.14"]
[White "Coicev, Matei-Andrei"]
[Black "Cosma, Ioan"]
[Result "0-1"]
[ECO "D20"]
[WhiteElo "2009"]
[BlackElo "2368"]
[Annotator "TA"]
[PlyCount "44"]
[EventDate "2022.12.04"]
[EventType "blitz"]
[EventCountry "ROU"]
[SourceTitle "playchess.com"]
[Source "ChessBase"]
[SourceQuality "1"]
[TimeControl "180+2"]

{[%evp 11,44,21,99,27,31,23,27,27,69,15,11,0,20,20,18,-22,7,12,36,14,0,0,26,-37,-43,-146,-159,-158,-155,-151,-163,-228,-222,-308,-287]} 1. e4 {[%emt 0:00:01]} e6 {[%emt 0:00:00]} 2. d4 {[%emt 0:00:01]} d5 {[%emt 0:00:01]} 3. exd5 {[%emt 0:03:06]} exd5 {[%emt 0:00:01]} 4. Nf3 {[%emt 0:00:00]} Bd6 {[%emt 0:00:03]} 5. c4 {[%emt 0:00:00]} dxc4 {[%emt 0:00:06]} 6. Bxc4 {[%emt 0:00:00]} Ne7 {[%emt 0:00:01] [#]} (6... Nf6 $11 {remains equal.}) 7. O-O {[%emt 0:00:00] D20: Queen's Gambit Accepted: 3 e3 and 3 e4.} (7. Ng5 $1 $16 {[%cal Rg5f7]} O-O 8. Qh5) 7... O-O $11 {[%emt 0:00:05]} 8. Nc3 {[%emt 0:00:00]} Bf5 {[%emt 0:00:03]} 9. Re1 {[%emt 0:00:00] [#] White has an edge.} h6 $146 {[%emt 0:00:02] Inhibits Bg5.} ({Predecessor:} 9... Bg6 10. Bg5 Kh8 11. Nh4 c6 12. Nxg6+ fxg6 13. Qe2 Bxh2+ 14. Kh1 Bd6 15. Bxe7 Qxe7 16. Qxe7 Bxe7 17. Rxe7 b5 18. Nxb5 cxb5 19. Bd5 Na6 20. Bxa8 Rxa8 21. Rae1 {1-0 (21) Radanska,V (2095)-Ivanova,L Pernik 1992}) 10. Be3 {[%emt 0:00:00]} (10. Nh4 $14) 10... Nd7 {[%emt 0:00:03]} 11. Qd2 {[%emt 0:00:00][%cal Oe3h6]} Nb6 {[%emt 0:00:03]} 12. Bb3 {[%emt 0:00:00][%cal Oe3h6] aiming for Bxh6!} Ng6 {[%emt 0:00:08]} 13. Rad1 {[%emt 0:00:00][%cal Of3e5]} a6 {[%emt 0:00:03]} (13... Bg4 {with more complications.} 14. Qc2 Bxf3 15. Qxg6 Kh8) 14. h3 {[%emt 0:00:00][%cal Of3e5]} Qf6 {[%emt 0:00:01]} 15. d5 {[%emt 0:00:00]} Rae8 {[%emt 0:00:21][%cal Of5h3]} 16. Bd4 {[%emt 0:00:00]} Qd8 {[%emt 0:00:04]} 17. Bxb6 {[%emt 0:00:00]} (17. g4 $11 Bf4 18. Be3 Bxe3 19. fxe3 (19. Rxe3 Bd7 $11)) 17... cxb6 $15 {[%emt 0:00:03]} 18. Nd4 {[%emt 0:00:00]} ({White should try} 18. Rxe8 $15 Rxe8 19. Re1) 18... Bf4 $17 {[%emt 0:00:11] A strong pair of Bishops.} 19. Re3 {[%emt 0:00:00]} ({Not} 19. Rxe8 $2 Rxe8 $19) 19... Bxe3 {[%emt 0:00:06]} 20. fxe3 {[%emt 0:00:00]} Bd7 {[%emt 0:00:05]} 21. Rf1 {[%emt 0:00:00]} (21. a4 {was necessary.}) 21... Qg5 $19 {[%emt 0:00:04][%csl LRe3,LRh3]} 22. Nf3 {[%emt 0:00:03]} Qxe3+ {[%emt 0:02:12] Weighted Error Value: White=0.37/Black=0.13 (very precise)} 0-1

[Event "Romanian Team Blitz Open 2022"]
[Site "Sebes"]
[Date "2022.12.04"]
[Round "5.15"]
[White "Itkis, Boris"]
[Black "Danila, Tudor-Gabriel"]
[Result "1-0"]
[ECO "E11"]
[WhiteElo "2343"]
[BlackElo "1939"]
[Annotator "TA"]
[PlyCount "97"]
[EventDate "2022.12.04"]
[EventType "blitz"]
[EventCountry "ROU"]
[SourceTitle "playchess.com"]
[Source "ChessBase"]
[SourceQuality "1"]
[TimeControl "180+2"]

{[%evp 9,97,18,55,65,76,40,62,56,69,59,93,52,92,83,85,62,83,71,80,66,72,73,89,83,145,139,183,176,187,194,258,254,256,216,210,210,543,538,609,480,631,647,760,750,804,794,925,723,677,675,816,676,787,773,988,950,955,932,1411,1418,1372,1418,1377,1337,1306,1322,1698,1556,2139,1988,1809,1629,1852,1752,2444,2422,2570,2392,3201,2842,29986,29988,29990,29991,29993,29991,29991,29992,29994,29995]} 1. d4 {[%emt 0:03:04]} Nf6 {[%emt 0:03:04]} 2. c4 e6 {[%emt 0:00:02]} 3. Nf3 Bb4+ {[%emt 0:00:02]} 4. Bd2 Be7 {[%emt 0:00:02]} 5. Nc3 {[%emt 0:00:08]} b6 6. e4 {[%emt 0:00:02] E11: Bogo-Indian.} Bb7 7. d5 {[%emt 0:00:02] [#]} d6 $146 {[%emt 0:00:06]} ({Predecessor:} 7... exd5 8. cxd5 c6 9. d6 Bxd6 10. e5 Bxe5 11. Nxe5 O-O 12. Be2 d5 13. O-O d4 {1-0 (21) Polyakevich,S (2302)-Akishin,O (2025) Novosibirsk 2007}) 8. Bd3 {[%emt 0:00:02] White is slightly better.} O-O {[%emt 0:00:02]} 9. O-O {[%emt 0:00:02]} Bc8 {[%emt 0:00:02]} 10. dxe6 {[%emt 0:00:02] White is more active.} Bxe6 {[%emt 0:00:02]} 11. Nd4 Bd7 {[%emt 0:00:02]} 12. h3 {[%emt 0:00:04]} c5 13. Nc2 {[%emt 0:00:02]} Nc6 {[%emt 0:00:04]} 14. f4 {[%emt 0:00:02]} a6 {[%emt 0:00:02][%cal Ob6b5]} 15. Qf3 {[%emt 0:00:02] White leaves nothing to chance now.} Rc8 {[%emt 0:00:02][%cal Ob6b5]} 16. Rae1 {[%emt 0:00:02]} Be6 {[%emt 0:00:02]} (16... b5 $142) 17. Nd5 $16 {[%emt 0:00:02]} Rb8 {[%emt 0:00:02]} 18. a4 {[%emt 0:00:02] Prevents b5.} Nd7 {[%emt 0:00:02]} 19. Bc3 {[%emt 0:00:02]} Bf6 {[%emt 0:00:02]} (19... Bh4 $142) 20. Nxf6+ {[%emt 0:00:02]} Nxf6 {[%emt 0:00:02]} 21. e5 {[%emt 0:00:02]} dxe5 {[%emt 0:00:02]} 22. fxe5 (22. Qxc6 Qxd3 23. fxe5 Nh5 $15) 22... Nd7 {[%emt 0:00:02] [#]} (22... Ne8 {is a better chance.} 23. Rd1 (23. Qe4 g6 $16) 23... Qc7) 23. Qxc6 $18 {[%emt 0:00:04]} Qh4 {[%emt 0:00:02]} 24. Qe4 {[%emt 0:00:02]} Qh6 {[%emt 0:00:02]} 25. Ne3 {[%emt 0:00:02]} Rbe8 {[%emt 0:00:02]} 26. Nf5 {[%emt 0:00:02]} Bxf5 27. Qxf5 {[%emt 0:00:02]} Re6 {[%emt 0:00:04]} 28. Rf4 {[%emt 0:00:02][%cal Bf1f4,Bf4e4,Be4e2][%mdl 32]} g6 {[%emt 0:00:02]} 29. Qg4 {[%emt 0:00:02] [#] aiming for Bf5.} Qg7 {[%emt 0:00:02]} 30. Rfe4 {[%emt 0:00:02]} Rb8 {[%emt 0:00:02]} 31. R4e2 {[%emt 0:00:02]} b5 {[%emt 0:00:02]} 32. cxb5 {[%emt 0:00:02]} axb5 33. Bxb5 {[%emt 0:00:02]} Nb6 {[%emt 0:00:04]} 34. a5 {[%emt 0:00:02][%cal Ba4a5,Ba5a6,Ba6a7][%mdl 32]} Nd5 35. Bc4 Nxc3 {[%emt 0:00:04]} 36. bxc3 {[%emt 0:00:04]} Re7 {[%emt 0:00:02]} 37. a6 {[%emt 0:00:02]} h5 {[%emt 0:00:02]} 38. Qf3 {[%emt 0:00:02]} Rd8 {[%emt 0:00:02]} 39. e6 {[%emt 0:00:02]} f5 {[%emt 0:00:02]} 40. Qe3 {[%emt 0:00:02]} Kh7 {[%emt 0:00:02]} 41. Qxc5 {[%emt 0:00:02]} Qf6 42. a7 {[%emt 0:00:02]} f4 {[%emt 0:00:04]} 43. Qe5 {[%emt 0:00:02]} Qf8 {[%emt 0:00:02]} 44. Rf1 {[%emt 0:00:02]} f3 {[%emt 0:00:02]} 45. Rxf3 {[%emt 0:00:02] White mates.} Rd1+ {[%emt 0:00:02]} 46. Kh2 Qh6 {[%emt 0:00:02]} 47. Rf7+ {[%emt 0:00:04]} Rxf7 {[%emt 0:00:02]} 48. exf7 Rh1+ {[%emt 0:00:02]} 49. Kxh1 {[%emt 0:00:04] Weighted Error Value: White=0.18 (very precise) /Black=0.58} 1-0

[Event "Romanian Team Blitz Open 2022"]
[Site "Sebes"]
[Date "2022.12.04"]
[Round "5.16"]
[White "Mainescu, Andrei-Cristian"]
[Black "Bulau, Andrei-Cristian"]
[Result "1-0"]
[ECO "B22"]
[WhiteElo "1860"]
[BlackElo "2154"]
[Annotator "TA"]
[PlyCount "63"]
[EventDate "2022.12.04"]
[EventType "blitz"]
[EventCountry "ROU"]
[SourceTitle "playchess.com"]
[Source "ChessBase"]
[SourceQuality "1"]
[TimeControl "180+2"]

{[%evp 18,62,34,47,32,28,60,40,87,7,88,0,4,4,28,10,21,52,6,-1,-6,-3,13,17,141,129,624,11,225,0,491,275,697,689,664,480,464,331,316,300,635,650,685,593,3236,1003,29999]} 1. e4 {[%emt 0:00:02]} c5 {[%emt 0:00:01]} 2. Nf3 {[%emt 0:00:04]} Nc6 {[%emt 0:00:01]} 3. c3 {[%emt 0:00:03]} Nf6 {[%emt 0:00:12]} 4. e5 {[%emt 0:00:12]} Nd5 {[%emt 0:00:01]} 5. d4 {[%emt 0:00:02]} cxd4 {[%emt 0:00:01]} 6. cxd4 {[%emt 0:00:09]} e6 {[%emt 0:00:03]} 7. Nc3 {[%emt 0:00:16]} Nxc3 {[%emt 0:00:01]} 8. bxc3 {[%emt 0:00:01]} d6 {[%emt 0:00:01]} 9. exd6 {[%emt 0:00:02]} Bxd6 {[%emt 0:00:01]} 10. Bd3 {[%emt 0:00:04]} Ne7 {[%emt 0:00:02] B22: Sicilian: 2 c3.} 11. O-O {[%emt 0:00:08]} Ng6 {[%emt 0:00:08] [#]} 12. Ng5 $146 {[%emt 0:01:04]} ({Predecessor:} 12. g3 O-O 13. h4 f5 14. h5 Ne7 15. Qe2 Nd5 16. Bd2 Nf6 17. Ne5 Bxe5 18. dxe5 {1-0 (60) Kuhn,C (2252)-Cramling Bellon,A (2035) Chess.com INT 2021}) 12... Qc7 {[%emt 0:00:11]} (12... Nf4 $14) 13. h3 {[%emt 0:00:13] White is more active.} ({White should try} 13. d5 $16) 13... Bd7 {[%emt 0:00:09]} (13... h6 $11 14. Ne4 Be7) 14. Ne4 {[%emt 0:00:18]} (14. d5 $16) 14... Bh2+ {[%emt 0:00:08]} 15. Kh1 {[%emt 0:00:02]} Bf4 {[%emt 0:00:01]} (15... Bc6 {seems wilder.} 16. Ba3 O-O-O 17. f3 Kb8) 16. Ba3 {[%emt 0:00:05][%cal Od4d5]} Bc6 {[%emt 0:00:08] Prevents d5.} 17. Re1 {[%emt 0:00:19]} O-O-O {[%emt 0:00:13]} 18. Qe2 {[%emt 0:00:06]} (18. Rb1 {keeps more tension.} Nh4 19. f3 Kb8 20. Nc5) 18... Rhe8 {[%emt 0:00:16]} 19. Rab1 {[%emt 0:00:09]} f5 {[%emt 0:00:07]} (19... Nh4 {looks sharper.} 20. Qh5 Nxg2 21. Kxg2 f5) 20. Nc5 {[%emt 0:00:04]} Nh4 {[%emt 0:00:06]} (20... Bd6 $1 $11 {keeps the balance.} 21. Nxe6 Bxa3 22. Bxf5 Qf7) 21. f3 $36 {[%emt 0:00:03][%mdl 2048] White is on the roll.} (21. Nxe6 $2 Bxg2+ 22. Kg1 Bh2#) 21... e5 $2 {[%emt 0:00:07][%mdl 8192] [#]} (21... Bd6 $16) 22. Qc2 $2 {[%emt 0:00:03]} ({Only move:} 22. Rxb7 $3 $18 {[%mdl 512]} Bxb7 23. Ba6) 22... g6 $11 {[%emt 0:00:18] [#]} 23. Bc4 $2 {[%emt 0:00:04]} (23. Nxb7 $1 $18 {[%mdl 512]} Bxb7 24. Rxb7 Qxb7 25. Rb1 exd4 26. cxd4+ Bc7 27. Bf1 (27. Qf2 Bb6 $17)) 23... Rd6 $2 {[%emt 0:00:34][%mdl 8192] [#]} (23... Nxf3 $1 $11 {and Black stays safe.} 24. Be6+ (24. gxf3 Bxf3+ 25. Kg1 exd4 $11) 24... Rxe6 25. Nxe6 Nxe1 26. Rxe1 Qd7 27. Nxd8 Qxd8) 24. d5 {[%emt 0:00:03]} (24. Ba6 $142 $1 {[%mdl 512]} bxa6 25. Nxa6) 24... Bxd5 {[%emt 0:00:07]} (24... Rxd5 25. Bxd5 Bxd5) 25. Bxd5 $18 {[%emt 0:00:02]} Rxd5 {[%emt 0:00:01]} 26. Rxb7 {[%emt 0:00:01]} Qc6 {[%emt 0:00:02]} 27. Reb1 {[%emt 0:00:04] Intending Rb8+ and mate.} (27. Rxa7 Rd2 28. Qa4 Qxa4 29. Rxa4 Bg3 $18) (27. Rxh7 {[#]} Nxf3 $1 28. Rb1 (28. gxf3 $2 Rd2 $19) 28... Nd2 $15) 27... e4 {[%emt 0:00:09]} (27... Rxc5 $2 28. Rb8+ (28. Rxh7 e4 $11) 28... Kc7 29. Rxe8 $18) 28. fxe4 {[%emt 0:00:04] Really sharp!} (28. Rxh7 $2 exf3 29. Rxh4 Rd2 $19) 28... Rxc5 {[%emt 0:00:01]} (28... Rxe4 29. Qb2 (29. Nxe4 fxe4 30. Qb3 Nf5 $16) (29. Rxa7 $2 Rd2 $19) 29... Rxc5 30. Bxc5 (30. Rxa7 $2 Rb5 $19) 30... Nxg2 31. Rb8+ (31. Bxa7 $2 Re1+ 32. Rxe1 Nxe1+ 33. Kg1 Qxb7 $19) (31. Bg1 Rb4 $17) 31... Kd7 32. Qb7+ (32. Bxa7 Bxb8 33. Qb7+ Qxb7 $17) 32... Qxb7 33. R8xb7+ Kc6 34. Bxa7 Ne3 35. Rxh7 Nd5) 29. Bxc5 {[%emt 0:00:03][%cal Oc2b3] And now Qb3! would win.} (29. Rxa7 $2 {perishes.} Rc4 30. e5 Bxe5 $19) ({Weaker is} 29. Qf2 Bd6 $16) 29... Qxc5 30. Qa4 {[%emt 0:00:02][%cal Ra4e8]} Rd8 {[%emt 0:00:14]} 31. Qa6 {[%emt 0:00:01]} (31. Rxa7 $142 Qxa7 32. Qxa7) 31... Qf2 {[%emt 0:00:14]} 32. Rf7# {[%emt 0:00:03] Weighted Error Value: White=1.04/Black=1.15} 1-0

[Event "Romanian Team Blitz Open 2022"]
[Site "Sebes"]
[Date "2022.12.04"]
[Round "5.17"]
[White "Ardelean, George-Catalin"]
[Black "Anton, Teodor"]
[Result "1-0"]
[ECO "A45"]
[WhiteElo "2473"]
[BlackElo "2438"]
[Annotator "TA"]
[PlyCount "49"]
[EventDate "2022.12.04"]
[EventType "blitz"]
[EventCountry "ROU"]
[SourceTitle "playchess.com"]
[Source "ChessBase"]
[SourceQuality "1"]
[TimeControl "180+2"]

{[%evp 9,49,-32,-22,-3,4,-13,-13,-14,-19,-7,0,0,0,0,0,0,128,98,320,334,770,758,753,750,734,733,29982,29983,29985,29986,29994,674,29988,0,29995,1578,29996,29997,29997,29998,29998,29999]} 1. d4 {[%emt 0:00:01]} Nf6 {[%emt 0:00:01]} 2. Bf4 {[%emt 0:00:01]} b6 {[%emt 0:00:06]} 3. Nc3 {[%emt 0:00:03]} Bb7 {[%emt 0:03:01]} 4. f3 {[%cal Bf2f3,Bf3e4][%mdl 32]} d5 {[%emt 0:00:00]} 5. e4 {[%emt 0:00:01]} dxe4 {[%emt 0:00:00]} 6. fxe4 {[%emt 0:00:01] [#] A45: Trompowsky Attack.} e6 $146 {[%emt 0:00:00]} ({Predecessor:} 6... Nxe4 7. Bb5+ Nd7 8. Nxe4 Bxe4 9. Qe2 Bb7 10. Nf3 a6 11. Bc4 e6 12. d5 e5 13. Nxe5 {1-0 (34) Cornette,M (2611)-Bortnyk,O (2610) Chess.com INT 2018}) 7. Bb5+ {[%emt 0:00:12]} (7. e5 $5 {[%cal Re5f6]} Nd5 8. Qd2 $11) 7... Nbd7 {[%emt 0:00:00]} 8. Nf3 {[%emt 0:00:56][%cal Bg1f3,Bf3e5,Be5d7,Bd7f6][%mdl 32] The position is equal.} Bb4 {[%emt 0:00:00]} 9. O-O {[%emt 0:00:06]} Bxc3 10. bxc3 {[%emt 0:00:01]} Bxe4 {[%emt 0:00:00]} 11. Ne5 {[%emt 0:00:49] Bxd7+ is the strong threat.} O-O {[%emt 0:00:00]} 12. Qe2 {[%emt 0:00:01]} Bb7 {[%emt 0:00:00]} (12... Bg6 $1 $11 {keeps the balance.}) 13. Bg5 $1 $36 {[%emt 0:00:01][%mdl 2048] White has strong initiative. White has more active pieces. The black rooks are badly placed. This pair of bishops is nice.} c6 $2 {[%emt 0:00:00] [#]} (13... Nxe5 $2 14. dxe5 Qd5 15. Rxf6 $18) (13... h6 $16 {was called for.} 14. Nxd7 hxg5 15. Nxf8 Kxf8) 14. Bd3 $1 $18 {[%emt 0:00:32][%cal Bb5d3,Bd3f5,Bf5h7,Bh7g6][%mdl 32]} (14. Bxc6 Bxc6 15. Nxc6 Qc7 $11) (14. Nxc6 Qe8 $14) 14... h6 $2 {[%emt 0:00:00]} (14... Qc7 15. Nxd7 Nxd7) 15. Nxd7 {[%emt 0:00:09][%mdl 64] Pin} hxg5 {[%emt 0:00:00] [#]} 16. Nxf6+ $1 {[%emt 0:00:13]} ({Weaker is} 16. Nxf8 Kxf8 17. Qe5 c5 $16) 16... gxf6 {[%emt 0:00:00]} 17. Qh5 {[%emt 0:00:02][%csl Gd3][%cal Rh5h7]} f5 {[%emt 0:00:00] [#]} 18. Rxf5 $1 {[%emt 0:00:09][%mdl 576]} exf5 {[%emt 0:00:00]} (18... Kg7 19. Rxg5+) 19. Bxf5 {[%emt 0:00:01][%csl Gf5][%cal Rh5h7]} Re8 {[%emt 0:00:00]} 20. Qh6 {[%emt 0:00:01]} (20. Qh7+ $142 Kf8 21. Qh6+ Kg8 22. Bh7+ Kh8 23. Bg6+ Kg8 24. Qh7+ Kf8 25. Qxf7#) 20... Qc7 {[%emt 0:00:28][%cal Of7f6] White must now prevent ...f6!} 21. Rf1 $2 {[%emt 0:00:05] Inhibits f6.} (21. Bh7+ {mates} Kh8 22. Bg6+ Kg8 23. Qh7+ Kf8 24. Rf1 Qf4 25. Rxf4 (25. Qxf7+ Qxf7 26. Rxf7+ Kg8 $14) 25... Re1+ 26. Kf2) 21... Ba6 $2 {[%emt 0:00:03][%mdl 8192]} (21... f6 $11 22. Bd3 b5 23. Rxf6 Re1+ 24. Kf2 Re7) 22. Bh7+ {[%emt 0:00:10]} Kh8 {[%emt 0:00:00]} 23. Bg6+ {[%emt 0:00:01][%mdl 64] Discovered Attack. White mates.} Kg8 {[%emt 0:00:01]} 24. Qh7+ {[%emt 0:00:01]} Kf8 {[%emt 0:00:01]} 25. Rxf7+ {[%emt 0:00:00] Weighted Error Value: White=0.71/Black=1.34} 1-0

[Event "Romanian Team Blitz Open 2022"]
[Site "Sebes"]
[Date "2022.12.04"]
[Round "5.18"]
[White "David, Alexandru-Vasile"]
[Black "Murariu, Andrei"]
[Result "1-0"]
[ECO "D31"]
[WhiteElo "2404"]
[BlackElo "2493"]
[Annotator "TA"]
[PlyCount "67"]
[EventDate "2022.12.04"]
[EventType "blitz"]
[EventCountry "ROU"]
[SourceTitle "playchess.com"]
[Source "ChessBase"]
[SourceQuality "1"]
[TimeControl "180+2"]

{[%evp 19,67,-30,-8,-33,-21,-45,-38,-27,73,59,188,171,181,225,211,208,333,257,288,301,255,128,111,34,84,67,232,159,225,225,661,622,1670,1458,1136,1482,1885,839,779,612,612,612,1604,612,1547,605,602,598,591,559]} 1. d4 {[%emt 0:00:02]} d5 {[%emt 0:00:01]} 2. c4 {[%emt 0:00:01]} c6 {[%emt 0:00:01]} 3. Nf3 {[%emt 0:00:01]} Nf6 {[%emt 0:00:00]} 4. Nc3 {[%emt 0:00:02]} dxc4 {[%emt 0:00:02]} 5. e4 {[%emt 0:00:01]} b5 {[%emt 0:00:03]} 6. Be2 {[%emt 0:00:01]} e6 {[%emt 0:00:13]} 7. a4 {[%emt 0:00:02]} Bb4 {[%emt 0:00:06]} 8. Qc2 {[%emt 0:00:35]} Bb7 {[%emt 0:00:14]} 9. O-O {[%emt 0:00:05]} a6 {[%emt 0:00:07]} 10. e5 {[%emt 0:00:19]} Nd5 {[%emt 0:00:08]} 11. Ne4 {[%emt 0:00:01] D31: Queen's Gambit Declined: Semi-Slav without ...Nf6 (+ Marshall Gambit and Noteboom) and Exchange Variation lines without ...Nf6.} h6 {[%emt 0:00:10]} 12. b3 {[%emt 0:00:13]} cxb3 {[%emt 0:00:08]} (12... c3 {is interesting.} 13. Qd3 a5 14. axb5 cxb5 15. Qxb5+ Qd7) 13. Qxb3 {[%emt 0:00:02] [#] Black is slightly better.} Nd7 $146 {[%emt 0:00:13] [#]} (13... O-O $11 {keeps the balance.}) ({Predecessor:} 13... O-O 14. Ne1 Nd7 15. Qg3 Kh8 16. Qh3 Kg8 17. Nd3 c5 18. Qg3 Kh8 19. Nd6 Bc6 20. dxc5 Bxc5 21. Nxc5 Nxc5 22. Bxh6 gxh6 {0-1 (39) Bareev,E (2636)-Kharitonov,A (2524) Dagomys 2009}) 14. Ba3 $1 $16 {[%emt 0:00:09] White is more active.} bxa4 {[%emt 0:01:10]} ({Black should try} 14... Bxa3 $1 $14 15. Qxa3 b4 16. Nd6+ Kf8) 15. Qb2 {[%emt 0:00:17]} Qb6 {[%emt 0:00:14]} 16. Bxb4 {[%emt 0:00:08]} Nxb4 {[%emt 0:00:04]} 17. Nd6+ {[%emt 0:00:07]} (17. Rxa4 $6 a5 $16) 17... Kf8 {[%emt 0:00:11]} (17... Ke7 $142 18. Nc4 (18. Rxa4 a5 $16) 18... Qb5) 18. Rxa4 {[%emt 0:00:47]} a5 {[%emt 0:00:01]} 19. Rfa1 {[%emt 0:00:01]} c5 {[%emt 0:00:07]} 20. Nc4 {[%emt 0:00:05]} (20. Nxb7 $18 Qxb7 21. dxc5 (21. Rxa5 Ke7 $16)) 20... Qc7 {[%emt 0:00:09]} 21. Rxa5 {[%emt 0:00:05]} (21. dxc5 $16 {[%cal Rc4a5]} Rb8 22. Rxa5 (22. Nxa5 Bxf3 23. Bxf3 Nd5 $16)) 21... Rxa5 {[%emt 0:00:02]} (21... Ke7 $14) 22. Rxa5 {[%emt 0:00:01]} Nc6 $2 {[%emt 0:00:07]} (22... Ke7 $1 $14) 23. Ra4 {[%emt 0:00:18]} cxd4 {[%emt 0:00:03] [#]} (23... g5 $16 {keeps fighting.}) 24. Nd6 $1 $18 {[%emt 0:00:01]} ({Don't take} 24. Nxd4 $6 Nxd4 25. Qxd4 Ke7) 24... Nc5 {[%emt 0:00:05]} (24... d3) 25. Rc4 {[%emt 0:00:02] White is clearly winning.} Nxe5 {[%emt 0:00:05]} 26. Nxe5 {[%emt 0:00:07][%cal Oc4c5] And now Rxc5! would win.} Qxd6 {[%emt 0:00:01] [#]} 27. Rxc5 $1 {[%emt 0:00:01][%mdl 576]} Bd5 {[%emt 0:00:03]} (27... Bc6 28. Rxc6) 28. Rc8+ {[%emt 0:00:06]} (28. Qxd4 $142 Qd8 29. Bh5) 28... Ke7 {[%emt 0:00:02]} 29. Rxh8 {[%emt 0:00:03]} Qxe5 {[%emt 0:00:00]} 30. Bf1 {[%emt 0:00:07]} Qe4 {[%emt 0:00:04]} 31. Rb8 {[%emt 0:00:03] Strongly threatening Qb6.} d3 {[%emt 0:00:02]} 32. Qb4+ {[%emt 0:00:02]} Kf6 {[%emt 0:00:05]} 33. Qxe4 {[%emt 0:00:01]} Bxe4 {[%emt 0:00:02]} 34. Rd8 {[%emt 0:00:01] Weighted Error Value: White=0.83/Black=0.75} 1-0

[Event "Romanian Team Blitz Open 2022"]
[Site "Sebes"]
[Date "2022.12.04"]
[Round "5.19"]
[White "Grecescu, Gabriel-Andrei"]
[Black "Ghimpu, Samuel-Timotei"]
[Result "0-1"]
[ECO "A13"]
[WhiteElo "2388"]
[BlackElo "2455"]
[Annotator "TA"]
[PlyCount "60"]
[EventDate "2022.12.04"]
[EventType "blitz"]
[EventCountry "ROU"]
[SourceTitle "playchess.com"]
[Source "ChessBase"]
[SourceQuality "1"]
[TimeControl "180+2"]

{[%evp 9,60,8,30,0,0,-26,-16,-11,24,-50,-54,-127,-124,-122,-133,-137,-99,-254,-79,-97,-94,-90,-90,-88,-80,-97,-95,-301,-315,-318,-322,-304,-312,-297,-308,-460,-459,-675,-722,-1002,-1025,-1326,-1073,-1054,-1024,-29963,-29964,-7246,-6559,-2818,-1657,-29987,-6069]} 1. c4 {[%emt 0:00:01]} e6 {[%emt 0:00:01]} 2. Nf3 {[%emt 0:00:01]} d5 {[%emt 0:00:01]} 3. b3 {[%emt 0:00:02]} Nf6 {[%emt 0:00:10]} 4. e3 {[%emt 0:00:02]} Bd6 {[%emt 0:00:02]} 5. Bb2 {[%emt 0:00:01]} c6 {[%emt 0:00:08]} 6. g4 {[%emt 0:00:10] A13: English Opening: 1...e6.} O-O {[%emt 0:00:31]} 7. g5 {[%emt 0:00:03]} Ne4 {[%emt 0:00:05]} 8. h4 {[%emt 0:00:10] [#] The position is equal.} Re8 $146 {[%emt 0:00:05]} ({Predecessor:} 8... Qe7 9. d3 Bb4+ 10. Ke2 Nd6 11. a3 Ba5 12. Bh3 c5 13. Qg1 Nc6 14. Bf6 Qe8 {1-0 (41) Gyurkovics,M (2109)-Csomor,V (2050) Budapest 2010}) 9. Qc2 {[%emt 0:00:16]} (9. d3 $11 Nc5 10. d4) 9... e5 $15 {[%emt 0:00:06]} 10. Nc3 {[%emt 0:00:23]} ({White should play} 10. a3 $15) 10... Bf5 $1 $17 {[%emt 0:00:13][%cal Oe4g3] Threatens to win with ...Ng3!} 11. d3 {[%emt 0:00:32]} Nxc3 {[%emt 0:00:04] Black is more active.} 12. Bxc3 {[%emt 0:00:01]} Na6 {[%emt 0:00:10] ...d4 is the strong threat.} 13. Be2 $2 {[%emt 0:00:19] [#]} (13. e4 $17 {is a better defense.} d4 14. Bb2 (14. exf5 $2 dxc3 15. Bh3 Ba3 $19)) 13... dxc4 $2 {[%emt 0:00:44]} (13... d4 $1 $19 {[%cal Rd4c3]} 14. e4 (14. exd4 $2 e4 $19) 14... dxc3 15. exf5 Ba3) 14. bxc4 {[%emt 0:00:04]} e4 {[%emt 0:00:08]} 15. Nd4 {[%emt 0:00:10]} exd3 {[%emt 0:00:03]} (15... Bg6 {simplifies} 16. Qd2 exd3 17. Bxd3 Qe7) 16. Bxd3 {[%emt 0:00:07]} Nb4 {[%emt 0:00:04]} 17. Bxb4 {[%emt 0:00:03]} Bxb4+ {[%emt 0:00:02]} 18. Kf1 $2 {[%emt 0:00:01] [#]} (18. Ke2 $17 {was forced.} Bg4+ 19. Kf1) 18... Bxd3+ $1 $19 {[%emt 0:00:05]} 19. Qxd3 {[%emt 0:00:02]} c5 {[%emt 0:00:02]} 20. Rb1 {[%emt 0:00:37]} Ba5 {[%emt 0:00:08]} 21. Rxb7 {[%emt 0:00:15][%cal Od3f5] And now Qf5! would win.} cxd4 {[%emt 0:00:02]} 22. Qf5 {[%emt 0:00:01]} (22. Qxd4 $142 Qxd4 23. exd4) 22... Rf8 {[%emt 0:00:04][%cal Be8f8,Bf8f7,Bf7f5][%mdl 32]} (22... dxe3 $2 23. Qxf7+ Kh8 24. Qxg7#) 23. h5 {[%emt 0:00:05]} (23. Qd7 $142 dxe3 24. fxe3) 23... dxe3 {[%emt 0:00:19] aiming for ...Qd2.} 24. Rd7 {[%emt 0:00:18]} Qe8 {[%emt 0:00:10]} 25. g6 {[%emt 0:00:02]} e2+ {[%emt 0:00:06]} 26. Kg2 {[%emt 0:00:02]} e1=Q {[%emt 0:00:06]} ({Less strong is} 26... hxg6 27. hxg6 fxg6 28. Qd5+ (28. Qxa5 {leads to mate.} Qe4+ 29. f3 Qxf3+ 30. Kh2 Qf2+ 31. Kh3 Rf3+ 32. Kg4 Qg3#) 28... Rf7 29. Rxf7 Qxf7 30. Qxa8+ Qf8 31. Qd5+ (31. Qxa7 $2 {is the wrong capture.} e1=Q $19) 31... Qf7 32. Qxa5 $18) 27. gxf7+ {[%emt 0:00:04]} Rxf7 {[%emt 0:00:06]} 28. Rxe1 {[%emt 0:00:03]} Rxf5 {[%emt 0:00:04]} 29. Rxe8+ {[%emt 0:00:02]} Rxe8 {[%emt 0:00:01]} 30. Rxa7 {[%emt 0:00:00]} Bb6 {[%emt 0:00:02] Weighted Error Value: White=1.47/Black=0.28 (precise)} (30... Be1 $142 31. h6 Rxf2+ 32. Kh3 gxh6 33. Ra3 Rc2 34. Kg4 Rxc4+ 35. Kf3 h5 36. Rb3 Rc2 37. Kf4 Bh4 38. Re3 Rf2+ 39. Rf3 Rfe2 40. Rg3+ Kh8 41. Kf3 R8e3+ 42. Kf4 Bxg3+ 43. Kf5 Re5+ 44. Kf6 Rf2#) 0-1